bitfinex-derivatives/quotes_ETHF0:USTF0_20260102
["timestamp","ask_amount","ask_price","bid_price","bid_amount"]
[1767367851339,2.90954662,3071.1,3069.7,0.0048828]
[1767367852429,0.0048828,3070.7,3069.7,0.0048828]
[1767367853835,0.00350017,3071.1,3069.9,2.76775513]
[1767367854032,0.00350017,3071.1,3069.9,7.40175513]
[1767367854336,0.00350017,3071.1,3070.0,0.16299]
[1767367854929,0.0048828,3070.9,3070.0,0.16299]
[1767367855636,2.87654731,3072.5,3070.1,2.76775513]
[1767367855836,2.87654731,3072.5,3070.4,0.16298]
[1767367856645,0.0048828,3071.8,3070.4,3.10883128]
[1767367856945,0.0048828,3071.8,3070.7,0.16296]
[1767367857133,0.0048828,3071.8,3070.8,0.16296]
[1767367857332,0.0048828,3071.8,3070.8,3.1062891]
[1767367857537,0.00345288,3072.5,3070.9,0.16295]
[1767367857933,0.00345288,3072.5,3070.9,3.1062791]
[1767367858433,0.00345288,3072.5,3071.1,2.9433291]
[1767367858638,2.86569014,3073.5,3071.5,3.1111319]
[1767367858841,2.86569014,3073.5,3071.7,2.9433291]
[1767367859043,2.86569014,3073.5,3071.7,7.5793291]
[1767367859235,2.86569014,3073.5,3071.8,8.84925317]
[1767367859431,2.86569014,3074.0,3071.8,7.7422291]
[1767367859636,0.00325527,3073.2,3071.8,7.7422291]
[1767367859835,0.00325527,3073.2,3072.0,2.9433291]
[1767367860034,0.00410468,3074.0,3072.3,3.1062091]
[1767367860536,2.86979482,3074.0,3072.0,4.636]
[1767367861341,2.86979482,3074.0,3071.8,3.1062291]
[1767367861641,2.86979482,3074.0,3072.0,2.9433291]
[1767367861939,0.00410468,3074.0,3072.3,2.9433291]
[1767367862339,0.00410468,3074.0,3072.7,0.16285]
[1767367862638,2.86569014,3075.0,3073.0,3.1110519]
[1767367862830,2.86569014,3075.6,3073.1,2.9433291]
[1767367863029,2.86569014,3075.6,3073.7,0.1628]
[1767367863234,2.86569014,3075.6,3073.7,4.7998]
[1767367863447,0.00275361,3075.6,3073.8,2.9433291]
[1767367863643,0.00275361,3075.6,3073.9,3.1061191]
[1767367863842,0.00275361,3075.6,3073.9,2.9433291]
[1767367864139,0.00275361,3075.6,3074.1,3.1061091]
[1767367864340,0.00275361,3075.6,3074.5,0.0048828]
[1767367865039,2.86844375,3075.6,3074.5,0.0048828]
[1767367865837,0.00275361,3075.6,3074.5,0.0048828]
[1767367866234,3.02833014,3076.8,3074.6,2.9433291]
[1767367866438,3.02833014,3076.8,3074.6,7.22003488]
[1767367866740,2.86569014,3076.5,3074.5,0.0048828]
[1767367866939,2.86569014,3076.5,3074.6,4.636]
[1767367867141,2.86569014,3076.5,3074.7,4.27670578]
[1767367867352,2.86930387,3076.5,3074.8,4.636]
[1767367867539,0.00361373,3076.5,3074.8,7.5793291]
[1767367867736,0.00361373,3076.5,3074.9,2.9433291]
[1767367867932,0.00361373,3076.5,3075.1,2.9433291]
[1767367868139,0.00361373,3076.5,3075.1,3.1060591]
[1767367868437,0.00361373,3076.5,3075.2,4.637]
[1767367868939,0.00361373,3076.5,3075.1,2.9433291]
[1767367869138,0.00361373,3076.5,3075.2,4.167]
[1767367869436,0.00361373,3076.5,3075.3,4.167]
[1767367869637,0.00361373,3076.5,3074.9,0.00238005]
[1767367869843,0.00361373,3076.5,3074.9,3.49738005]
[1767367870038,2.86930387,3076.5,3074.9,0.00238005]
[1767367870440,2.86930387,3076.5,3075.0,4.21620112]
[1767367870639,2.86930387,3076.5,3075.1,4.636]
[1767367870836,2.86569014,3076.3,3074.9,0.00238005]
[1767367871139,2.86569014,3075.5,3073.6,3.255]
[1767367871340,3.02841014,3075.3,3072.9,2.9433291]
[1767367871539,2.86569014,3075.0,3072.6,3.66586]
[1767367871736,2.86569014,3075.0,3072.8,3.1061791]
[1767367871946,2.86569014,3075.0,3073.0,7.41561409]
[1767367872140,3.02840014,3075.5,3073.7,0.0048828]
[1767367872342,2.86569014,3075.5,3073.7,0.0048828]
[1767367872537,2.86569014,3076.0,3073.8,4.14148005]
[1767367872742,0.00361373,3076.5,3074.1,2.9482119]
[1767367872942,2.86930387,3076.5,3074.2,0.16277]
[1767367873144,2.86930387,3076.5,3074.2,7.24757915]
[1767367873445,3.03196387,3076.5,3074.2,7.24757915]
[1767367873838,3.03196387,3076.5,3074.3,2.9433291]
[1767367874043,3.03196387,3076.5,3074.4,4.635]
[1767367874642,0.00361373,3076.5,3074.6,2.9433291]
[1767367874851,0.00361373,3076.5,3075.0,0.0048828]
[1767367875048,0.00361373,3076.5,3075.2,0.0048828]
[1767367875247,0.00361373,3076.5,3075.2,0.00839009]
[1767367876347,0.00361373,3076.5,3075.3,0.0048828]
[1767367876537,0.00361373,3076.5,3075.2,0.00839009]
[1767367876538,2.86930387,3076.5,3075.2,0.00839009]
[1767367877652,3.02835014,3076.4,3075.2,0.00839009]
[1767367877848,0.00361373,3076.5,3075.2,0.01327289]
[1767367878053,0.00361373,3076.5,3075.2,0.00839009]
[1767367878241,2.86930387,3076.5,3075.2,0.00839009]
[1767367879449,2.86930387,3076.5,3075.3,0.0048828]
[1767367879951,2.86930387,3076.5,3075.2,0.00839009]
[1767367880144,0.00361373,3076.5,3075.2,0.00839009]
[1767367880448,0.00361373,3076.5,3075.5,0.0048828]
[1767367884948,0.16264,3076.9,3075.7,0.0048828]
[1767367885152,2.86569014,3076.9,3075.2,0.00839009]
[1767367885348,1.2606687,3077.1,3075.2,0.00839009]
[1767367885349,2.86569014,3076.7,3075.2,0.00839009]
[1767367885753,2.86569014,3076.7,3075.3,0.0048828]
[1767367886053,2.86828748,3076.7,3075.3,0.0048828]
[1767367886255,0.87206498,3076.6,3075.3,0.0048828]
[1767367886440,3.03093748,3076.7,3075.3,0.0048828]
[1767367886441,0.87206498,3076.5,3075.3,0.0048828]
[1767367886645,3.03093748,3076.7,3075.3,0.0048828]
[1767367886855,0.87216122,3076.6,3075.3,0.0048828]
[1767367887047,0.87216122,3076.5,3075.3,0.0048828]
[1767367887247,0.87216122,3076.4,3075.3,0.0048828]
[1767367887447,0.16524734,3076.7,3075.3,0.0048828]
[1767367887746,0.00259734,3076.7,3075.3,0.1676028]
[1767367888357,0.87508112,3076.6,3075.2,0.00839009]
[1767367888650,0.16268,3076.1,3075.2,0.00839009]
[1767367888850,0.87508112,3076.0,3075.2,0.00839009]
[1767367889057,0.87508112,3076.0,3075.3,0.0048828]
[1767367889354,2.79055036,3076.5,3075.7,0.0048828]
[1767367889653,0.87643189,3076.4,3075.7,0.0048828]
[1767367889861,0.87643189,3076.3,3075.2,0.00839009]
[1767367890158,0.87643189,3076.2,3075.5,0.0048828]
[1767367890356,0.87643189,3076.1,3075.5,0.0048828]
[1767367890656,0.87643189,3076.1,3075.2,0.00839009]
[1767367890657,0.87649856,3076.0,3075.2,0.00839009]
[1767367890853,2.7931477,3076.7,3075.6,0.0048828]
[1767367891051,2.79055036,3076.5,3075.2,0.00839009]
[1767367891351,4.67142108,3076.3,3074.4,0.16277]
[1767367891544,2.79055036,3076.1,3074.4,0.16277]
[1767367891748,0.87653834,3076.0,3074.4,0.16277]
[1767367892356,0.0048828,3075.5,3074.9,0.0048828]
[1767367892655,0.87653834,3075.4,3074.9,0.0048828]
[1767367893352,0.87653834,3075.4,3074.4,0.00399108]
[1767367894457,0.87653834,3075.4,3074.6,0.0048828]
[1767367899449,3.6670887,3075.4,3074.6,0.0048828]
[1767367899758,3.6670887,3075.3,3074.4,0.00399108]
[1767367900059,0.87653834,3075.2,3074.4,0.00399108]
[1767367900252,0.87653834,3075.1,3074.4,0.00399108]
[1767367900449,0.0048828,3075.5,3074.4,0.00399108]
[1767367900450,0.87653834,3075.0,3074.4,0.00399108]
[1767367900649,0.0048828,3075.5,3074.4,0.00887388]
[1767367900859,0.87958237,3075.4,3074.4,0.00887388]
[1767367901054,0.0048828,3075.5,3074.4,0.00887388]
[1767367901257,0.87959081,3075.4,3074.4,0.00887388]
[1767367901553,0.0048828,3075.5,3074.4,0.00887388]
[1767367901765,0.87981444,3075.4,3074.4,0.00887388]
[1767367902063,0.87986434,3075.3,3074.4,0.00887388]
[1767367902259,0.0048828,3075.5,3074.4,0.00887388]
[1767367902561,0.0048828,3075.5,3074.4,0.17163388]
[1767367904151,0.0048828,3075.5,3074.6,0.16276]
[1767367904451,2.79055036,3076.4,3074.8,0.16274]
[1767367904654,0.88019928,3076.3,3074.8,0.16274]
[1767367904866,0.88019928,3076.2,3074.8,0.16274]
[1767367905061,2.79055036,3076.4,3074.5,4.32482854]
[1767367905062,0.88019928,3076.1,3074.9,0.16274]
[1767367905261,0.88016428,3076.0,3074.9,0.16274]
[1767367905453,2.79055036,3076.4,3074.9,0.16274]
[1767367905654,0.0048828,3076.0,3074.9,0.16274]
[1767367908956,0.00259734,3076.7,3075.4,3.00612777]
[1767367909159,0.87846355,3076.6,3075.0,4.16064132]
[1767367909350,2.7931477,3076.7,3074.9,2.84341777]
[1767367909550,0.87834425,3076.6,3074.9,2.84341777]
[1767367909754,2.7931477,3076.7,3074.9,2.84341777]
[1767367909963,0.0048828,3076.1,3074.9,2.84341777]
[1767367910655,0.0048828,3076.1,3075.1,0.16273]
[1767367911760,2.88207524,3076.1,3074.4,0.17164388]
[1767367911966,2.87719244,3075.9,3074.4,0.00887388]
[1767367912257,2.87719244,3075.7,3074.4,0.00887388]
[1767367912464,0.0048828,3076.1,3074.4,0.00887388]
[1767367912666,3.75555376,3076.0,3074.4,0.00887388]
[1767367912860,2.87719244,3076.0,3074.4,0.00887388]
[1767367914163,2.87719244,3075.2,3073.0,3.253]
[1767367914368,2.87719244,3075.2,3073.0,3.41584]
[1767367914565,3.03992244,3075.2,3073.0,3.41584]
[1767367914966,0.16273,3075.1,3073.0,3.41584]
[1767367915170,0.0048828,3074.4,3073.7,0.0048828]
[1767367915371,0.00737137,3074.4,3073.7,0.0048828]
[1767367915566,2.88456381,3074.4,3073.0,0.00273615]
[1767367916575,2.88456381,3074.4,3073.4,0.0048828]
[1767367917565,10.44790092,3074.3,3071.6,0.16291]
[1767367917775,2.99970092,3073.9,3071.8,2.92319214]
[1767367918359,2.83690092,3073.9,3071.9,7.13030582]
[1767367918570,2.83690092,3073.9,3072.6,0.0048828]
[1767367918767,0.3248,3074.2,3072.6,0.0048828]
[1767367919075,3.16170092,3074.2,3072.6,0.0048828]
[1767367919567,3.16170092,3074.2,3071.9,0.00296832]
[1767367919765,2.83690092,3073.7,3071.9,0.00296832]
[1767367920669,2.83690092,3073.7,3072.5,0.0048828]
[1767367920868,2.83690092,3073.7,3071.9,0.00296832]
[1767367921569,2.83690092,3073.7,3072.1,0.16289]
[1767367921774,2.83690092,3073.7,3072.6,0.00325527]
[1767367922672,2.83690092,3073.7,3071.9,0.00296832]
[1767367923574,2.83690092,3073.7,3071.9,2.76326046]
[1767367923763,3.16170092,3074.2,3072.3,2.76029214]
[1767367924365,3.16170092,3074.2,3072.5,0.16287]
[1767367924572,3.16170092,3074.2,3071.9,0.00296832]
[1767367925074,2.83690092,3074.0,3071.9,0.00296832]
[1767367926077,2.83690092,3073.7,3071.9,0.00296832]
[1767367926574,2.83690092,3073.7,3072.2,0.16288]
[1767367926773,0.3248,3074.2,3072.8,2.92314214]
[1767367926978,0.3248,3074.2,3073.0,2.76029214]
[1767367927280,0.3248,3074.2,3073.2,0.16283]
[1767367927778,0.3248,3074.2,3073.3,0.16282]
[1767367927974,0.00737137,3074.4,3073.5,0.16281]
[1767367928177,2.83690092,3075.4,3073.5,0.16281]
[1767367928771,2.83690092,3075.4,3073.8,0.1628]
[1767367928972,2.83690092,3076.3,3073.7,2.76029214]
[1767367929176,0.0048828,3075.3,3074.7,0.00488279]
[1767367929373,2.84001558,3076.3,3074.7,0.00904341]
[1767367930177,0.00311466,3076.3,3074.7,0.00904341]
[1767367930377,0.00311466,3076.3,3074.9,0.16274]
[1767367930887,2.83690092,3077.5,3075.2,2.76029214]
[1767367931079,2.83690092,3077.5,3075.6,0.1627]
[1767367931388,0.48601261,3077.7,3075.8,2.92298214]
[1767367931683,0.0048828,3076.9,3076.2,0.0048828]
[1767367931883,0.48901169,3077.7,3076.2,2.92784494]
[1767367932080,0.48901169,3077.7,3076.6,0.16265]
[1767367932388,2.83690092,3078.6,3076.2,0.1675528]
[1767367932789,2.83690092,3078.6,3076.2,2.76517494]
[1767367932790,0.00487464,3077.7,3076.2,2.76517494]
[1767367932983,0.00487464,3077.7,3076.4,2.76029214]
[1767367933183,2.83690092,3078.6,3076.6,0.16265]
[1767367933380,2.83690092,3078.6,3076.8,0.16264]
[1767367933687,2.83690092,3079.3,3076.9,11.84519155]
[1767367933987,2.83690092,3079.3,3076.9,7.21919155]
[1767367934183,2.83690092,3078.3,3076.2,0.16267]
[1767367934388,2.83981045,3078.3,3076.3,4.78867]
[1767367934588,2.83981045,3078.3,3076.3,8.98810057]
[1767367934787,2.83981045,3078.3,3076.3,4.36210057]
[1767367934992,2.83981045,3078.3,3076.3,0.16267]
[1767367935391,2.83981045,3078.3,3077.0,0.00487464]
[1767367935984,0.00290953,3078.3,3077.0,0.00487464]
[1767367936388,0.00290953,3078.3,3077.0,2.76516678]
[1767367937597,0.00290953,3078.3,3077.0,0.16749464]
[1767367938096,0.00290953,3078.3,3077.0,2.92778678]
[1767367938593,2.83690092,3079.6,3077.8,0.16259]
[1767367939187,2.83690092,3079.6,3077.8,4.78659]
[1767367939386,2.83690092,3079.6,3077.4,2.76029214]
[1767367939387,2.83690092,3079.6,3077.4,7.38429214]
[1767367939583,2.83690092,3078.7,3077.4,4.624]
[1767367940090,2.83690092,3078.7,3076.6,4.624]
[1767367940292,2.83690092,3078.7,3076.7,2.76029214]
[1767367940596,0.00487464,3078.8,3077.0,2.92292214]
[1767367940797,0.00487464,3078.8,3077.4,0.00487464]
[1767367941488,2.84177556,3078.8,3077.4,0.00487464]
[1767367948298,2.84177556,3078.8,3076.3,0.16266]
[1767367948299,2.69057427,3078.6,3076.3,2.62554178]
[1767367949403,2.69057427,3078.6,3077.1,0.00487464]
[1767367949708,0.00487464,3078.8,3077.5,2.62554178]
[1767367949897,2.69057427,3079.7,3078.0,0.16257]
[1767367950197,2.69392162,3079.6,3078.0,0.16257]
[1767367950599,2.69392162,3079.6,3077.3,0.16261]
[1767367951005,2.69057427,3079.4,3077.4,0.16261]
[1767367951301,0.00487464,3078.7,3077.6,0.16259]
[1767367952497,0.00487464,3078.7,3077.7,0.16259]
[1767367952698,0.00487464,3078.7,3077.2,0.16262]
[1767367953598,2.69544891,3078.7,3077.2,0.16262]
[1767367954805,2.69544891,3078.7,3077.5,0.1626]
[1767367954806,0.00487464,3078.7,3077.5,0.1626]
[1767367955002,0.00487464,3078.7,3077.5,2.62554178]
[1767367955202,0.00487464,3078.7,3077.8,0.16258]
[1767367955397,0.00487464,3078.7,3077.2,4.619]
[1767367955600,0.00487464,3078.7,3077.2,7.24454178]
[1767367956005,0.00487464,3078.7,3077.9,0.16258]
[1767367957298,0.00487464,3078.7,3077.3,6.83920195]
[1767367957500,0.00487464,3078.7,3077.3,2.78815178]
[1767367958009,0.00487464,3078.7,3077.4,0.16261]
[1767367958211,0.00487464,3078.7,3077.5,0.1626]
[1767367959010,0.00487464,3078.7,3077.5,4.7826]
[1767367959602,0.00487464,3078.7,3077.1,0.00487464]
[1767367959804,2.69544891,3078.7,3077.2,4.62]
[1767367960004,2.69544891,3078.7,3077.1,0.00487464]
[1767367960309,0.87294243,3078.6,3077.1,0.00487464]
[1767367960511,0.00487464,3078.7,3077.3,2.78815178]
[1767367960811,0.00487464,3078.7,3077.5,0.1626]
[1767367964407,0.00487464,3078.7,3077.1,2.63041642]
[1767367964613,3.56248582,3078.6,3077.1,0.00487464]
[1767367964805,2.69057427,3078.6,3077.1,0.00487464]
[1767367965209,0.87213153,3078.5,3077.1,0.16749464]
[1767367965412,0.87213153,3078.4,3077.1,0.16749464]
[1767367967110,0.00487464,3078.7,3077.1,0.16749464]
[1767367967308,0.87215392,3078.6,3077.1,0.16749464]
[1767367967519,0.87215392,3078.5,3077.1,0.16749464]
[1767367967819,0.00487464,3078.7,3077.1,0.16749464]
[1767367968020,0.87214881,3078.6,3077.1,0.16749464]
[1767367968321,0.87214881,3078.5,3077.1,0.16749464]
[1767367968630,0.00487464,3078.7,3077.1,0.16749464]
[1767367968815,0.87214271,3078.6,3077.1,0.16749464]
[1767367969016,0.87214271,3078.5,3077.1,0.16749464]
[1767367969320,0.87214271,3078.4,3077.1,0.16749464]
[1767367969518,0.00487464,3078.7,3077.1,0.16749464]
[1767367969720,0.87233963,3078.6,3077.1,0.16749464]
[1767367969920,0.87233963,3078.5,3077.1,0.16749464]
[1767367970123,0.87233963,3078.4,3077.1,0.16749464]
[1767367970418,0.00487464,3078.7,3077.1,0.16749464]
[1767367970721,0.87235822,3078.6,3077.1,0.16749464]
[1767367971018,0.87235822,3078.5,3077.1,0.16749464]
[1767367971211,0.00487464,3078.7,3077.2,0.16262]
[1767367971406,0.87233266,3078.6,3077.2,0.16262]
[1767367971619,0.87233266,3078.5,3077.2,0.16262]
[1767367971818,0.00487464,3078.7,3077.3,0.16261]
[1767367972122,0.87230715,3078.6,3077.3,0.16261]
[1767367972322,0.00487464,3078.7,3077.4,0.16261]
[1767367972516,0.87231382,3078.6,3077.4,0.16261]
[1767367972818,0.00487464,3078.7,3077.4,0.16261]
[1767367973015,3.56290477,3078.6,3077.1,0.00487464]
[1767367973322,0.8723305,3078.5,3077.1,0.00487464]
[1767367974217,2.69057427,3078.4,3077.1,0.00487464]
[1767367974411,2.69057427,3078.4,3075.2,1.19512309]
[1767367974412,2.85314427,3078.2,3075.8,0.16269]
[1767367974718,2.69057427,3078.0,3076.2,0.16516768]
[1767367974920,2.69057427,3077.8,3076.2,0.16516768]
[1767367975126,3.56290477,3077.7,3076.2,0.16516768]
[1767367975317,0.8723305,3077.6,3076.2,0.16516768]
[1767367975519,2.69057427,3078.4,3076.6,0.00487464]
[1767367975718,2.69057427,3078.2,3076.6,0.00487464]
[1767367975922,3.56290245,3078.1,3076.6,0.00487464]
[1767367976127,0.87232818,3078.0,3076.6,0.00487464]
[1767367976421,2.67729608,3077.9,3076.6,0.00487464]
[1767367976616,2.67729608,3077.7,3076.2,0.00249768]
[1767367976813,2.67729608,3077.5,3076.2,0.00249768]
[1767367977018,2.67729608,3077.3,3076.2,0.00249768]
[1767367977224,0.00365211,3077.3,3076.2,0.00249768]
[1767367977613,0.3247,3077.8,3076.4,0.00487464]
[1767367977815,0.3247,3077.8,3076.4,0.16753464]
[1767367978220,0.3247,3077.8,3076.5,0.16266]
[1767367978421,3.00199608,3077.8,3076.5,0.16266]
[1767367978620,0.00487464,3077.5,3076.5,0.16266]
[1767367979532,0.32884659,3077.8,3076.5,0.16266]
[1767367979923,0.32884659,3077.8,3076.6,0.16265]
[1767367980632,0.00487464,3077.5,3076.6,0.16265]
[1767367980930,0.32884659,3077.8,3076.6,0.16265]
[1767367981129,0.32884659,3077.8,3076.7,0.16264]
[1767367981332,0.32884659,3077.8,3076.8,0.16264]
[1767367981935,0.00487464,3077.6,3076.8,0.16264]
[1767367982133,2.67729608,3079.0,3077.1,1.25374257]
[1767367982331,2.67729608,3079.0,3077.2,2.6552253]
[1767367983034,0.00324436,3078.4,3077.2,2.6552253]
[1767367983235,0.00378361,3079.0,3077.6,0.1626]
[1767367984235,0.00378361,3079.0,3078.0,0.00487464]
[1767367984534,2.68107969,3079.0,3077.0,0.16263]
[1767367984927,2.68107969,3079.0,3077.3,0.16261]
[1767367985533,0.00378361,3079.0,3077.1,2.6552253]
[1767367985724,0.00378361,3079.0,3077.7,0.00487464]
[1767367986135,2.68107969,3079.0,3077.7,0.00487464]
[1767367986323,2.68107969,3079.0,3077.2,2.90194944]
[1767367986527,2.68107969,3079.0,3076.8,2.90194944]
[1767367986732,2.67729608,3078.6,3076.5,2.90194944]
[1767367986930,2.67729608,3078.6,3076.3,3.06460944]
[1767367987135,2.83985608,3078.4,3076.3,3.06460944]
[1767367987339,2.83986608,3078.2,3076.2,0.00249768]
[1767367987535,2.67729608,3077.4,3076.2,0.00249768]
[1767367988234,0.00487464,3077.5,3076.2,0.00249768]
[1767367988636,0.00487464,3077.5,3076.5,0.00487464]
[1767367988934,2.67729608,3078.4,3076.5,0.00487464]
[1767367989642,2.67729608,3078.4,3076.7,0.16264]
[1767367989939,0.00487464,3077.9,3076.7,0.16264]
[1767367990937,0.00487464,3077.9,3077.0,0.16263]
[1767367991235,2.67729608,3078.4,3077.0,0.16263]
[1767367991437,0.3248,3078.5,3077.0,0.16263]
[1767367992534,0.3248,3078.5,3077.2,0.16262]
[1767367994437,0.3248,3078.5,3077.3,0.16261]
[1767367995334,0.00378361,3079.0,3077.0,4.619]
[1767367995335,0.00378361,3079.0,3077.6,1.25374257]
[1767367995535,0.00378361,3079.0,3077.7,0.16259]
[1767367995735,0.00378361,3079.0,3078.1,0.16257]
[1767367995946,2.67729608,3080.0,3078.2,0.16256]
[1767367996137,2.67729608,3080.0,3078.1,1.25374257]
[1767367996138,2.67729608,3080.0,3078.3,0.16256]
[1767367996635,2.67729608,3080.0,3078.1,1.25374257]
[1767367996840,2.67970814,3080.0,3078.4,0.16255]
[1767367997042,2.67970814,3080.0,3078.7,0.16254]
[1767367997240,2.67729608,3080.5,3078.9,0.16253]
[1767367997442,2.67729608,3080.5,3079.4,0.00487464]
[1767367997843,8.67729608,3080.5,3078.4,0.00232477]
[1767367998041,2.83973608,3080.5,3078.4,0.00232477]
[1767367998243,2.84324335,3080.5,3078.4,0.00232477]
[1767367998662,2.68080335,3080.5,3078.4,2.65755007]
[1767367998950,0.00487464,3079.8,3079.1,0.00487464]
[1767367999344,2.68080335,3080.5,3079.1,0.00487464]
[1767368000153,2.68080335,3080.5,3078.4,0.00232477]
[1767368000352,2.67729608,3080.0,3078.4,0.00232477]
[1767368000550,2.67729608,3080.0,3077.6,4.618]
[1767368000740,2.83977608,3079.8,3077.6,4.618]
[1767368001349,0.00487464,3079.0,3078.4,0.00487464]
[1767368001653,0.00487464,3079.0,3078.4,0.00793178]
[1767368002549,2.67729608,3079.8,3078.4,0.00793178]
[1767368003145,2.67729608,3079.8,3077.5,4.617]
[1767368003350,2.67729608,3079.8,3077.5,4.7796]
[1767368003853,2.67729608,3079.8,3077.6,0.1626]
[1767368004055,0.00487464,3079.0,3078.4,0.00487464]
[1767368006651,2.65339072,3079.0,3077.7,0.16259]
[1767368007058,0.00487464,3079.0,3077.7,0.16259]
[1767368007760,0.00487464,3079.0,3078.0,0.00487464]
[1767368009750,2.64851608,3080.0,3078.0,0.00487464]
[1767368010152,2.64851608,3080.0,3078.2,0.16256]
[1767368010352,2.64851608,3080.0,3078.4,1.25374257]
[1767368010554,0.00487464,3079.5,3078.4,1.41629257]
[1767368010757,2.65202335,3080.5,3078.8,0.16253]
[1767368010952,2.65202335,3080.5,3078.4,1.25374257]
[1767368010953,2.65202335,3080.5,3079.0,0.16252]
[1767368011958,2.65202335,3080.5,3078.5,4.17927179]
[1767368011959,2.65202335,3080.5,3078.4,4.31824201]
[1767368012159,2.64851608,3080.3,3078.2,4.616]
[1767368012360,2.81097608,3080.3,3078.2,4.616]
[1767368012560,2.81097608,3080.3,3078.4,1.25374257]
[1767368012965,2.81097608,3080.3,3078.2,4.616]
[1767368013567,2.81097608,3080.3,3078.2,4.77856]
[1767368014864,2.81097608,3080.3,3078.3,0.16256]
[1767368015070,2.81097608,3080.3,3078.4,0.16255]
[1767368015569,2.64851608,3080.3,3078.4,0.16255]
[1767368015866,2.64851608,3080.3,3078.5,0.16255]
[1767368016765,2.64851608,3080.3,3078.7,0.16254]
[1767368016966,2.64851608,3080.3,3078.4,4.15569201]
[1767368017270,0.00350727,3080.5,3079.3,0.1625]
[1767368017571,0.00350727,3080.5,3079.6,0.00487464]
[1767368017768,2.65202335,3080.5,3078.7,0.16254]
[1767368017966,0.00350727,3080.5,3078.8,2.60801433]
[1767368018164,2.64851608,3081.1,3079.4,1.25374257]
[1767368018763,2.64851608,3081.9,3079.9,0.00487464]
[1767368019071,2.64851608,3081.9,3079.9,0.00718111]
[1767368019072,2.65250517,3081.9,3079.9,0.00718111]
[1767368019366,2.65250517,3081.9,3080.1,0.16247]
[1767368019565,2.65250517,3081.9,3080.2,0.16246]
[1767368020763,0.00398909,3081.9,3080.2,2.77047433]
[1767368021273,2.65250517,3081.9,3080.2,0.16246]
[1767368021472,2.65250517,3081.9,3079.9,0.00718111]
[1767368022375,2.81487517,3081.9,3079.9,0.00718111]
[1767368022871,2.65250517,3081.9,3079.9,0.00718111]
[1767368023267,2.65250517,3081.9,3080.1,0.16247]
[1767368024365,2.65250517,3081.9,3079.9,0.00718111]
[1767368025771,2.65250517,3081.9,3080.0,0.16247]
[1767368025966,2.65250517,3081.9,3080.1,0.16246]
[1767368026171,2.65250517,3081.9,3079.9,0.00718111]
[1767368026172,2.65250517,3081.9,3080.2,0.16246]
[1767368026768,2.65250517,3081.9,3080.5,0.16244]
[1767368026970,2.65250517,3081.9,3079.9,2.61519544]
[1767368026971,2.65250517,3081.9,3080.4,4.61]
[1767368027173,2.65250517,3081.9,3080.6,0.16244]
[1767368027565,0.00398909,3081.9,3080.6,0.16244]
[1767368027782,0.00398909,3081.9,3080.8,0.16243]
[1767368028076,0.00398909,3081.9,3080.9,0.16242]
[1767368028276,2.64851608,3082.4,3080.9,0.16242]
[1767368028782,2.64851608,3083.6,3080.8,2.60801433]
[1767368029072,2.64851608,3083.6,3081.9,0.0048661]
[1767368029272,2.65121214,3083.6,3081.9,0.0048661]
[1767368029666,0.00269606,3083.6,3082.0,4.23613713]
[1767368030077,0.00269606,3083.6,3082.1,7.859]
[1767368030269,2.65121214,3083.6,3082.1,0.00293799]
[1767368030978,2.65121214,3083.6,3081.9,0.0048661]
[1767368031475,2.64851608,3083.2,3080.7,2.696]
[1767368032179,2.64851608,3083.2,3080.8,4.14121957]
[1767368032375,2.64851608,3082.9,3080.7,0.00263426]
[1767368032686,2.64851608,3082.2,3080.7,0.00263426]
[1767368033976,2.64851608,3082.0,3079.6,1.784]
[1767368034480,2.64851608,3082.0,3079.4,0.1625]
[1767368034880,2.64851608,3081.8,3079.5,0.1625]
[1767368035076,2.64851608,3081.8,3079.4,0.00252704]
[1767368035278,2.64851608,3081.8,3079.6,2.60801433]
[1767368035481,2.64851608,3081.8,3080.3,0.16245]
[1767368035776,0.00483764,3082.3,3080.7,0.0048661]
[1767368036081,0.00483764,3082.3,3080.7,0.1672961]
[1767368038171,2.44948554,3082.3,3080.7,0.1672961]
[1767368040678,2.44948554,3082.3,3080.7,0.0048661]
[1767368040884,2.4446479,3082.1,3079.9,3.247]
[1767368041082,2.4446479,3081.9,3079.9,3.247]
[1767368041282,2.4446479,3081.7,3079.5,0.1625]
[1767368041476,2.4446479,3081.7,3079.4,1.98252704]
[1767368041671,2.44948554,3082.3,3079.7,2.41763077]
[1767368041874,2.44948554,3082.3,3080.7,0.0048661]
[1767368043587,0.00483764,3082.3,3080.7,2.42249687]
[1767368043789,2.4446479,3082.9,3081.4,0.1624]
[1767368043987,2.4446479,3083.5,3081.6,0.16238]
[1767368044278,2.4446479,3083.5,3081.8,0.16237]
[1767368044677,0.0048661,3083.0,3082.3,0.0048661]
[1767368048178,0.0048661,3083.0,3081.6,0.00308757]
[1767368048575,2.449514,3083.0,3081.6,0.00308757]
[1767368049187,2.449514,3083.0,3082.0,0.0048661]
[1767368050384,0.0048661,3083.0,3082.0,0.0048661]
[1767368051090,2.449514,3083.0,3081.6,0.00308757]
[1767368051285,2.449514,3083.0,3080.7,0.16243]
[1767368051681,2.611834,3083.0,3080.7,0.16243]
[1767368051886,2.449514,3083.0,3080.9,0.16242]
[1767368052087,2.449514,3083.0,3081.6,0.00324408]
[1767368052287,2.449514,3083.0,3080.9,0.16242]
[1767368052986,2.449514,3083.0,3081.0,0.16242]
[1767368053181,2.449514,3083.0,3080.6,2.41763077]
[1767368053382,2.449514,3083.0,3081.0,4.20287036]
[1767368053583,2.449514,3083.0,3080.8,1.41831766]
[1767368053788,0.0048661,3083.0,3081.6,0.16238]
[1767368053992,2.44734396,3083.6,3081.8,0.16237]
[1767368054384,2.44734396,3083.6,3082.0,0.16236]
[1767368054991,0.0048661,3083.1,3082.5,0.0048661]
[1767368055986,0.0048661,3083.1,3082.0,0.16236]
[1767368056687,0.00269606,3083.6,3082.3,0.16234]
[1767368057893,2.4446479,3084.9,3082.6,0.0048661]
[1767368058095,2.4446479,3084.9,3082.8,2.41763077]
[1767368058289,2.4446479,3084.9,3083.1,0.16231]
[1767368058789,2.4446479,3084.9,3083.4,0.16229]
[1767368058992,0.0048661,3084.5,3083.4,0.16478628]
[1767368059390,0.0048661,3084.5,3083.4,0.00249628]
[1767368059797,2.449514,3084.5,3083.4,0.00249628]
[1767368059983,2.449514,3084.5,3082.6,0.0048661]
[1767368059984,8.449514,3084.5,3082.6,0.0048661]
[1767368060187,2.4446479,3084.3,3082.6,0.0048661]
[1767368060999,2.4446479,3084.3,3082.6,0.00821065]
[1767368061197,2.4446479,3084.3,3082.6,0.17054065]
[1767368061386,2.4446479,3084.3,3082.6,0.00821065]
[1767368062699,2.4446479,3084.3,3081.5,0.16239]
[1767368062700,2.4446479,3083.8,3081.5,0.16239]
[1767368063090,2.4446479,3083.8,3081.7,0.16238]